bitfinex-derivatives/quotes_ETHF0:USTF0_20250410
["timestamp","ask_amount","ask_price","bid_price","bid_amount"]
[1744294268898,1.2803,1563.1,1562.9,0.00960092]
[1744294269094,1.2803,1563.1,1563.0,1.28033]
[1744294269290,1.28029,1563.1,1563.0,1.28031]
[1744294269800,1.28029,1563.1,1562.9,0.00960092]
[1744294269996,1.28029,1563.1,1563.0,1.28033]
[1744294270204,4.49763092,1563.2,1562.9,0.00960092]
[1744294270401,1.28025,1563.1,1563.0,1.28033]
[1744294270604,3.21740092,1563.2,1563.1,1.28025]
[1744294271102,0.00960092,1563.2,1563.1,1.28025]
[1744294271296,0.00960092,1563.2,1563.1,11.57415]
[1744294271903,5.0839,1564.0,1563.9,1.27959]
[1744294272103,1.27951,1564.0,1563.9,1.27959]
[1744294272301,3.2078,1564.0,1563.6,6.40739]
[1744294272499,3.2078,1564.0,1563.7,5.1609]
[1744294272703,3.2078,1563.8,1563.4,7.994]
[1744294272901,1.27993,1563.5,1563.4,1.27994]
[1744294273197,3.2078,1563.6,1563.0,3.20083]
[1744294273403,3.2078,1563.6,1563.5,1.27992]
[1744294273706,4.57458156,1563.6,1563.5,1.27992]
[1744294273911,3.29474156,1563.6,1563.5,1.27992]
[1744294274104,0.08694156,1563.6,1563.5,6.27992]
[1744294274398,0.08694156,1563.6,1563.5,1.27992]
[1744294275106,3.29474156,1563.6,1563.4,6.44084]
[1744294275307,4.9344,1563.5,1563.4,5.1609]
[1744294275607,5.02134156,1563.5,1563.3,0.00960092]
[1744294275804,6.30128156,1563.5,1563.4,1.28]
[1744294276005,6.30133156,1563.5,1563.4,1.28]
[1744294276204,1.28,1563.4,1563.3,0.00960092]
[1744294276399,6.2144,1563.4,1563.3,1.28968092]
[1744294276600,9.50914156,1563.4,1563.3,0.00960092]
[1744294276903,14.50914156,1563.4,1563.3,0.00960092]
[1744294277302,3.20054,1563.2,1562.9,1.28037]
[1744294277496,5.1514,1563.1,1563.0,1.28033]
[1744294277697,5.23834156,1563.1,1563.0,1.28033]
[1744294277906,0.08694156,1563.1,1563.0,6.28033]
[1744294278403,0.08694156,1563.1,1563.0,9.48813]
[1744294278607,0.08694156,1563.1,1563.0,6.28033]
[1744294278808,0.08694156,1563.1,1563.0,11.56073]
[1744294279108,0.08694156,1563.1,1563.0,1.28033]
[1744294279402,8.44614156,1563.1,1562.9,0.00960092]
[1744294279608,1.28033,1563.0,1562.9,0.00960092]
[1744294279807,6.51867156,1563.0,1562.9,0.00960092]
[1744294280004,3.20118,1562.9,1562.4,3.20206]
[1744294280210,1.28062,1562.7,1562.4,8.48235]
[1744294280410,3.2078,1562.8,1562.7,1.28057]
[1744294280601,0.08694156,1563.0,1562.9,1.28041]
[1744294281111,0.08694156,1563.0,1562.9,6.28041]
[1744294281306,0.08694156,1563.0,1562.9,6.47841]
[1744294281698,0.08694156,1563.0,1562.9,11.47841]
[1744294281902,1.28001,1563.4,1563.3,1.28002]
[1744294282107,5.48184312,1563.4,1563.3,1.28002]
[1744294282305,0.08694312,1563.4,1563.3,1.28002]
[1744294282612,0.08694312,1563.4,1563.3,6.92002]
[1744294283408,0.08694312,1563.4,1563.3,14.91102]
[1744294283611,5.0772,1564.2,1563.5,6.3996]
[1744294283812,5.3671,1564.1,1564.0,1.27951]
[1744294284106,8.56187983,1564.1,1564.0,1.27951]
[1744294284308,11.76049983,1564.1,1563.7,1.27971]
[1744294284509,3.2078,1563.9,1563.6,5.1127]
[1744294284810,3.21740092,1564.1,1563.9,1.27957]
[1744294285013,4.48384075,1564.1,1564.0,1.27951]
[1744294285305,0.00960092,1564.1,1564.0,1.27951]
[1744294285505,12.78724883,1564.5,1564.0,5.0]
[1744294285506,4.78871883,1564.5,1564.0,5.0]
[1744294285702,4.78871883,1564.5,1564.4,4.48698]
[1744294285901,4.78871883,1564.5,1564.4,1.27918]
[1744294287110,1.27918,1564.4,1564.3,0.00960092]
[1744294287312,6.29088,1564.4,1564.3,0.00960092]
[1744294287710,11.29088,1564.4,1564.3,0.00960092]
[1744294287915,18.17897,1564.4,1563.6,11.16758]
[1744294288112,4.6801,1564.3,1564.2,1.27935]
[1744294288416,0.01042795,1564.3,1564.2,1.27935]
[1744294288907,0.01042795,1564.3,1564.2,6.27935]
[1744294289112,0.01042795,1564.3,1564.2,11.39835]
[1744294289416,8.21822795,1564.3,1564.1,1.28900092]
[1744294289608,4.8275,1564.2,1564.1,1.28900092]
[1744294289912,4.91425799,1564.2,1564.1,1.28903092]
[1744294291314,8.12205799,1564.2,1564.1,1.28903092]
[1744294291714,4.91425799,1564.2,1564.1,1.28903092]
[1744294291911,0.08675799,1564.2,1564.1,1.28903092]
[1744294292117,0.08675799,1564.2,1564.1,6.24963092]
[1744294292311,3.21740092,1564.6,1564.5,1.2791]
[1744294292614,0.00960092,1564.6,1564.5,1.2791]
[1744294292811,0.00960092,1564.6,1564.5,6.2791]
[1744294293012,0.00960092,1564.6,1564.5,12.1198]
[1744294293217,9.2e-07,1564.6,1564.5,20.57237856]
[1744294293620,9.2e-07,1564.6,1564.5,12.1198]
[1744294294015,4.9936,1565.2,1564.9,3.19694]
[1744294294213,4.48649,1565.1,1564.9,1.27873]
[1744294294412,9.54025,1565.1,1564.7,6.40514]
[1744294294720,3.2078,1564.8,1564.4,3.2078]
[1744294295015,4.4869,1564.5,1564.3,1.27921]
[1744294295220,4.4869,1564.5,1564.4,0.00960092]
[1744294295519,3.21820451,1564.5,1564.4,1.28878092]
[1744294295717,0.00960092,1564.8,1564.4,5.00960092]
[1744294295915,0.00960092,1564.8,1564.7,1.27894]
[1744294296319,8.21740092,1564.8,1564.5,6.26365]
[1744294296522,0.00960092,1564.8,1564.5,1.27904]
[1744294296717,1.27902,1564.6,1564.5,1.27909]
[1744294297022,1.2791,1564.5,1564.4,0.00960092]
[1744294297220,8.27419835,1564.5,1563.9,8.1924]
[1744294297416,4.48702,1564.4,1564.3,1.27926]
[1744294297616,1.27926,1564.3,1563.9,11.39137]
[1744294297918,4.48715,1564.2,1563.9,6.40677]
[1744294298121,4.48715,1564.2,1564.1,1.27943]
[1744294298313,4.56350835,1564.2,1564.1,1.27943]
[1744294298514,16.24815835,1564.2,1563.4,3.2078]
[1744294298723,1.27977,1563.7,1563.6,1.27982]
[1744294298917,1.27983,1563.7,1563.5,1.2799]
[1744294299123,4.48768,1563.6,1563.2,8.30791]
[1744294299319,0.07635835,1563.4,1563.3,1.28008]
[1744294300218,1.28008,1563.3,1563.2,0.00960092]
[1744294300519,3.20066,1563.1,1562.0,3.2078]
[1744294300817,4.48835,1562.8,1562.1,8.3101]
[1744294301022,4.48835,1562.8,1562.2,6.41019]
[1744294301224,4.48835,1562.8,1562.5,1.28066]
[1744294301225,3.2078,1562.8,1562.5,1.28066]
[1744294301520,3.2078,1562.8,1562.3,5.1075]
[1744294301521,0.07635835,1562.7,1562.6,1.28066]
[1744294301821,0.07635835,1562.7,1562.4,3.2078]
[1744294302024,0.07635835,1562.7,1562.5,4.48848]
[1744294302227,0.07635835,1562.7,1562.5,1.28068]
[1744294302427,0.07635835,1562.6,1562.5,1.28068]
[1744294303229,3.21740092,1562.8,1562.3,5.1075]
[1744294303424,3.21740092,1562.8,1562.6,1.28058]
[1744294303727,0.0103768,1562.7,1562.4,3.2078]
[1744294303925,0.0103768,1562.7,1562.6,1.28066]
[1744294304225,1.2910068,1562.7,1562.4,4.48857]
[1744294304421,0.0103768,1562.7,1562.5,1.28071]
[1744294304729,0.00960092,1562.8,1562.7,1.24584507]
[1744294305227,0.00960092,1562.8,1562.5,4.9911]
[1744294305427,0.00960092,1562.8,1562.6,1.28059]
[1744294305623,0.00960092,1562.8,1562.7,1.28057]
[1744294306227,0.00960092,1562.8,1562.6,1.2806]
[1744294306430,0.00960092,1562.8,1562.5,8.1989]
[1744294306624,0.00960092,1562.8,1562.7,1.28057]
[1744294307128,1.29009092,1562.8,1562.6,1.28062]
[1744294307424,0.00960092,1562.8,1562.5,6.27181]
[1744294307730,1.28061,1562.7,1562.5,1.28071]
[1744294307922,0.00960092,1562.8,1562.6,1.28063]
[1744294308116,1.28057,1562.7,1562.6,1.28063]
[1744294308317,1.28066,1562.6,1562.3,3.2078]
[1744294308520,1.28066,1562.6,1562.4,1.2808]
[1744294308727,5.0634,1562.7,1562.5,1.28074]
[1744294308927,1.28066,1562.6,1562.4,1.28075]
[1744294309124,6.34404,1562.7,1562.4,1.28075]
[1744294309432,1.28085,1562.4,1562.2,1.28093]
[1744294309625,1.28093,1562.3,1562.1,4.4888]
[1744294309820,3.2078,1562.4,1562.1,1.281]
[1744294310023,1.28098,1562.2,1562.1,1.281]
[1744294310223,23.6,1562.3,1561.9,8.2872]
[1744294310522,1.2811,1562.1,1561.9,8.2872]
[1744294310726,1.28115,1562.0,1561.9,3.2078]
[1744294310928,1.28135,1561.8,1561.7,1.28138]
[1744294311224,3.20349,1561.7,1561.2,0.10996607]
[1744294311424,3.20452,1561.2,1560.7,3.2078]
[1744294311627,3.2078,1560.8,1560.3,1.2825]
[1744294311826,3.2078,1560.5,1560.1,8.13513151]
[1744294312034,3.2078,1558.8,1558.0,3.70509605]
[1744294312221,3.2078,1558.1,1557.4,2.8384]
[1744294312530,0.89641,1557.5,1557.3,4.8612]
[1744294312732,0.89641,1557.5,1557.3,0.49829871]
[1744294312927,0.89641,1557.5,1556.7,7.97]
[1744294313127,3.21740092,1557.9,1557.2,1.25842644]
[1744294313326,3.71154525,1559.1,1557.6,3.2078]
[1744294313327,3.2078,1558.4,1557.6,3.2078]
[1744294313529,3.2078,1558.2,1557.3,6.28564206]
[1744294313734,3.2078,1558.1,1557.4,0.6424]
[1744294313923,3.2078,1558.2,1557.2,3.31776607]
[1744294314127,0.50921511,1559.1,1557.2,0.10996607]
[1744294314128,3.2078,1557.9,1557.2,0.10996607]
[1744294314432,3.2078,1557.4,1556.6,3.2078]
[1744294314632,3.2078,1557.1,1556.4,3.2078]
[1744294314821,3.22135175,1557.7,1556.4,3.2078]
[1744294314822,8.1215,1557.3,1556.4,3.2078]
[1744294315022,3.2078,1557.5,1557.0,3.2078]
[1744294315222,1.28477,1557.6,1557.0,3.2078]
[1744294315530,1.28511,1557.2,1556.8,3.2078]
[1744294315730,3.2078,1557.3,1556.8,1.28541]
[1744294315930,3.2078,1557.3,1557.1,0.00963175]
[1744294316136,0.00963175,1557.4,1557.1,0.00963175]
[1744294316329,0.00963175,1557.4,1557.1,3.21743175]
[1744294316526,3.2078,1557.9,1557.2,5.78310253]
[1744294316733,23.6,1558.1,1557.3,3.2078]
[1744294316734,1.28472,1557.7,1557.3,3.2078]
[1744294316929,3.2078,1557.8,1557.3,3.2078]
[1744294317131,3.2078,1557.8,1557.4,4.7727]
[1744294317524,1.28476,1557.7,1557.4,4.7727]
[1744294317830,3.2078,1557.6,1557.1,0.00963175]
[1744294318032,0.00341904,1557.1,1557.0,4.7727]
[1744294318429,1.2853,1557.0,1556.4,102.26852]
[1744294318626,3.2078,1556.9,1556.6,4.7727]
[1744294318936,0.00341904,1557.0,1556.9,1.28534]
[1744294319131,1.28481,1557.6,1557.0,1.28183096]
[1744294319332,3.2078,1557.9,1557.1,3.2078]
[1744294319538,1.28462,1557.8,1557.3,4.49279]
[1744294319737,0.00963175,1557.7,1557.6,4.49257]
[1744294320037,3.2078,1558.1,1557.7,1.28467]
[1744294320230,26.8078,1558.1,1557.6,3.2078]
[1744294320432,3.2078,1558.5,1557.8,3.2078]
[1744294320637,0.02363161,2425.1,1557.8,3.2078]
[1744294320638,3.2078,1558.4,1558.0,3.2078]
[1744294320833,3.2078,1558.4,1557.8,3.2078]
[1744294321040,3.2078,1558.4,1558.1,1.28433]
[1744294321337,0.00963175,1558.4,1558.0,11.7708]
[1744294321537,3.21743175,1558.4,1558.0,11.7708]
[1744294322331,3.2078,1558.1,1557.9,0.00963175]
[1744294322530,3.21743175,1558.4,1557.9,0.00963175]
[1744294322731,3.21743175,1558.4,1557.9,3.22073175]
[1744294323036,0.00963175,1558.4,1557.9,5.00963175]
[1744294323238,0.00963175,1558.4,1557.9,0.00963175]
[1744294323437,4.49212,1558.2,1557.9,0.00963175]
[1744294323642,3.2078,1558.2,1557.9,0.00963175]
[1744294324046,4.49215,1558.1,1558.0,8.34958408]
[1744294324236,1.28444,1558.0,1557.9,0.00963175]
[1744294324735,3.21151,1557.8,1557.2,4.5582]
[1744294325043,4.4927,1557.5,1557.2,4.5582]
[1744294325241,23.6,1557.4,1556.7,3.8502]
[1744294325434,3.2078,1557.3,1556.7,3.2078]
[1744294325737,3.2078,1557.7,1556.9,3.2078]
[1744294325939,3.2078,1557.7,1557.1,4.49298]
[1744294326134,3.2078,1557.7,1557.6,1.28477]
[1744294326339,3.19474921,1557.7,1557.6,6.28477]
[1744294326638,3.2078,1558.3,1558.0,1.28438]
[1744294326834,4.49202,1558.3,1558.0,1.28438]
[1744294327342,1.28432,1558.2,1558.0,0.00963175]
[1744294327537,4.50169175,1558.3,1558.0,1.29403175]
[1744294327847,0.00963175,1558.3,1558.0,0.00963175]
[1744294328038,3.21743175,1558.3,1558.0,0.00963175]
[1744294328439,4.49215,1558.1,1558.0,0.00963175]
[1744294328941,3.2078,1558.1,1558.0,1.29407175]
[1744294329246,0.00963175,1558.3,1558.2,1.28427]
[1744294329441,3.21743175,1558.3,1558.0,0.00963175]
[1744294329644,3.21743175,1558.3,1558.0,3.21105]
[1744294329844,0.00963175,1558.3,1558.2,1.28427]
[1744294330844,0.00963175,1558.3,1558.2,4.49207]
[1744294331240,0.00963175,1558.3,1558.2,1.28427]
[1744294331641,1.29383175,1558.3,1558.1,1.29394175]
[1744294331841,3.2078,1558.2,1558.1,0.00963175]
[1744294332043,4.49207,1558.2,1558.1,0.00963175]
[1744294332243,33.09207,1558.2,1558.1,0.00963175]
[1744294332442,28.09207,1558.2,1558.1,0.00963175]
[1744294332639,23.6,1558.2,1558.1,1.29398175]
[1744294332838,1.29387175,1558.3,1558.1,1.29398175]
[1744294332839,0.00963175,1558.3,1558.2,1.28427]
[1744294333246,0.00963175,1558.3,1558.1,0.00963175]
[1744294333647,4.49207,1558.2,1558.1,0.00963175]
[1744294334349,9.49207,1558.2,1558.1,0.00963175]
[1744294334546,1.28466,1557.8,1557.6,14.789]
[1744294334745,4.49245,1557.8,1557.6,14.78899]
[1744294335049,3.2078,1558.0,1557.6,19.92401]
[1744294335344,3.2078,1558.2,1558.1,1.2843]
[1744294335551,0.00963175,1558.3,1558.2,1.28427]
[1744294336346,1.75e-06,1558.3,1558.2,4.49207]
[1744294336546,1.75e-06,1558.3,1558.2,9.49207]
[1744294337053,1.75e-06,1558.3,1558.2,11.15497]
[1744294337743,1.75e-06,1558.3,1558.2,19.58939182]
[1744294337950,1.75e-06,1558.3,1558.2,26.51288225]
[1744294338253,1.75e-06,1558.3,1558.2,24.58621225]
[1744294338444,1.28419175,1558.3,1558.2,4.8707]
[1744294338846,1.28419175,1558.3,1558.2,6.15497]
[1744294339147,1.75e-06,1558.3,1558.2,6.15497]
[1744294339843,1.75e-06,1558.3,1558.2,16.02636043]
[1744294340043,1.75e-06,1558.3,1558.2,24.89436043]
[1744294340243,1.75e-06,1558.3,1558.2,33.22092081]
[1744294340955,3.2078,1559.0,1558.9,1.2837]
[1744294341251,3.2078,1559.1,1558.8,10.53159043]
[1744294341453,3.2078,1559.1,1558.8,15.10619043]
[1744294341643,1.28363,1559.0,1558.9,4.5746]
[1744294342144,3.21743175,1559.1,1559.0,1.28361]
[1744294342347,1.28361,1559.0,1558.9,4.5746]
[1744294342744,3.21743175,1559.1,1558.9,5.8583]
[1744294343046,9.50096175,1559.1,1559.0,1.28361]
[1744294343243,1.2837,1558.9,1558.8,1.29337175]
[1744294343442,3.2078,1558.9,1558.8,1.29337175]
[1744294343653,4.4915,1558.9,1558.8,0.00963175]
[1744294344151,3.2078,1558.9,1558.8,1.29341175]
[1744294344356,3.2078,1558.9,1558.8,0.00963175]
[1744294344541,3.2078,1558.9,1558.8,1.29341175]
[1744294344749,9.4915,1558.9,1558.8,0.00963175]
[1744294345657,1.28399,1558.6,1558.5,1.28398]
[1744294345856,1.28405,1558.5,1558.4,1.28404]
[1744294346064,3.2078,1558.6,1558.2,4.8056]
[1744294346352,1.28417,1558.4,1558.0,3.2111]
[1744294346560,3.2078,1558.5,1558.4,1.28411]
[1744294347062,4.6894,1558.9,1558.4,1.28411]
[1744294347063,4.4915,1558.9,1558.8,1.28378]
[1744294347355,3.2078,1558.9,1558.8,1.28378]
[1744294347654,3.2078,1558.9,1558.8,6.28378]
[1744294347854,0.00963175,1559.1,1559.0,1.28361]
[1744294348451,4.491,1559.6,1559.2,3.20853]
[1744294348749,3.2078,1559.6,1559.5,1.2832]
[1744294348947,3.2078,1559.7,1559.3,8.08691]
[1744294349151,3.2078,1559.7,1559.5,1.28317]
[1744294349352,3.2078,1559.7,1559.4,4.8785]
[1744294349660,4.49088,1559.7,1559.5,1.28314]
[1744294349854,4.49088,1559.7,1559.6,4.8785]
[1744294350064,1.28312,1559.6,1559.5,1.28315]
[1744294350357,3.2078,1559.7,1559.4,0.00963175]
[1744294350555,3.2078,1559.7,1559.6,1.28312]
[1744294350758,0.00963175,1559.8,1559.7,1.28304]
[1744294351257,0.00963175,1559.8,1559.7,7.52153043]
[1744294351456,0.00963175,1559.8,1559.7,10.72933043]
[1744294351861,0.00963175,1559.8,1559.7,7.52153043]
[1744294352064,0.00963175,1559.8,1559.7,5.85794]
[1744294353665,1.75e-06,1559.8,1559.7,15.85712198]
[1744294354667,1.75e-06,1559.8,1559.7,7.52153043]
[1744294354966,1.75e-06,1559.8,1559.7,20.94119094]
[1744294356661,1.75e-06,1559.8,1559.7,7.52153043]
[1744294356858,1.75e-06,1559.8,1559.7,1.28304]
[1744294357058,1.75e-06,1559.8,1559.7,4.49084]
[1744294357260,1.75e-06,1559.8,1559.7,2.94663043]
[1744294357461,1.75e-06,1559.8,1559.7,6.15443043]
[1744294357773,1.75e-06,1559.8,1559.7,1.28304]
[1744294358153,1.75e-06,1559.8,1559.6,1.28309]
[1744294358458,1.75e-06,1559.8,1559.7,1.28304]
[1744294358859,1.75e-06,1559.8,1559.7,5.94474]
[1744294360967,1.75e-06,1559.8,1559.7,7.60833043]
[1744294361467,1.75e-06,1559.8,1559.7,15.88433043]
[1744294363068,1.75e-06,1559.8,1559.7,7.60833043]
[1744294363281,1.75e-06,1559.8,1559.7,5.94474]
[1744294363874,5.00000175,1559.8,1559.7,1.28304]
[1744294364070,4.86540175,1559.8,1559.7,1.28304]
[1744294364365,8.20780175,1559.8,1559.5,4.5484]
[1744294364572,4.49092,1559.6,1559.5,1.28314]
[1744294364764,1.2832,1559.5,1559.4,1.29285175]
[1744294364969,6.1486,1559.5,1559.4,1.29285175]
[1744294365568,11.1486,1559.5,1559.4,0.00963175]
[1744294365959,3.2078,1559.6,1559.4,0.00963175]
[1744294366159,4.48890175,1559.8,1559.7,1.28304]
[1744294366364,1.75e-06,1559.8,1559.7,1.28304]
[1744294366759,1.28295175,1559.8,1559.7,1.28304]
[1744294366965,11.41520175,1559.8,1559.4,1.29289175]
[1744294367164,4.8298,1559.7,1559.6,1.28312]
[1744294367371,4.8298,1559.7,1559.4,0.00963175]
[1744294367559,1.28349,1559.2,1558.9,3.2092]
[1744294367763,3.2078,1559.2,1559.1,1.28348]
[1744294368171,8.0376,1559.4,1559.3,1.28337]
[1744294368472,1.28326,1559.5,1559.4,1.2832]
[1744294368473,1.28321,1559.5,1559.4,1.2832]
[1744294368671,14.09369,1559.6,1559.2,10.95638]
[1744294368875,12.8105,1559.6,1559.3,0.00963175]
[1744294369073,12.8105,1559.6,1558.9,6.41833]
[1744294369074,3.2078,1559.4,1558.6,1.77520867]
[1744294369261,3.2078,1559.2,1559.1,1.28353]
[1744294369466,1.28353,1559.1,1558.7,7.70632]
[1744294369769,1.28373,1558.9,1558.8,1.28377]
[1744294369969,7.9632,1559.0,1558.7,4.4967]
[1744294370162,28.09133,1559.2,1558.7,7.7063]
[1744294370363,6.03873,1559.4,1559.0,3.2078]
[1744294370565,3.2078,1559.8,1559.3,1.28337]
[1744294370769,7.9632,1559.8,1559.3,1.28337]
[1744294370970,0.00963175,1559.7,1559.6,1.28305]
[1744294371366,0.00963175,1559.7,1559.6,4.49085]
[1744294371573,1.75e-06,1559.7,1559.6,9.49085]
[1744294371762,1.75e-06,1559.7,1559.6,14.16925]
[1744294371971,1.75e-06,1559.7,1559.6,24.2686951]
[1744294372872,1.75e-06,1559.7,1559.6,15.83284043]
[1744294373372,1.75e-06,1559.7,1559.6,24.28711137]
[1744294373574,3.2078,1560.5,1559.7,1.28304]
[1744294373575,1.85333499,1559.8,1559.7,1.28304]
[1744294373875,7.11396486,1560.0,1559.9,1.28287]
[1744294374071,7.11396486,1560.0,1559.9,4.49067]
[1744294374266,7.11396486,1560.0,1559.9,17.49427748]
[1744294374577,7.11396486,1560.0,1559.9,9.16907]
[1744294375378,2.42218985,1560.0,1559.9,32.47830423]
[1744294375676,0.83280985,1560.0,1559.9,32.47830423]
[1744294376977,7.18792808,1560.1,1560.0,1.28279]
[1744294377175,5.36057808,1560.1,1560.0,5.89629]
[1744294377584,0.00963175,1560.1,1560.0,7.55988043]
[1744294378871,0.00963175,1560.1,1560.0,5.89629]
[1744294379067,1.29234175,1560.1,1560.0,4.6135]
[1744294379274,0.00963175,1560.1,1560.0,5.89629]
[1744294379477,4.84863175,1560.1,1560.0,5.89629]
[1744294380182,0.00963175,1560.1,1560.0,5.89629]
[1744294381182,0.00963175,1560.1,1560.0,4.6135]
[1744294381384,1.29234175,1560.1,1559.9,1.2828]
[1744294381578,0.00963175,1560.1,1560.0,1.28279]
[1744294381975,1.75e-06,1560.1,1560.0,6.28279]
[1744294382278,1.75e-06,1560.1,1560.0,16.37982873]
[1744294382482,1.75e-06,1560.1,1560.0,7.73828043]
[1744294383080,1.75e-06,1560.1,1560.0,6.07469]
[1744294383480,1.75e-06,1560.1,1560.0,16.19874857]
[1744294383986,1.75e-06,1560.1,1560.0,7.73828043]
[1744294384883,1.75e-06,1560.1,1560.0,20.90149276]
[1744294385184,9.6262,1560.9,1560.8,1.28213]
[1744294385379,1.28191,1561.1,1560.9,1.28199]
[1744294385584,1.28194,1561.1,1560.7,3.20553]
[1744294385786,8.0699,1561.2,1560.8,11.29343]
[1744294386099,11.8566081,1561.4,1561.3,1.28172]
[1744294386789,10.89860175,1561.5,1561.3,1.28172]
[1744294387089,9.61703175,1561.5,1561.4,1.28164]
[1744294387292,9.61703175,1561.5,1561.3,1.28167]
[1744294387474,10.89863175,1561.5,1561.3,1.28167]
[1744294387678,3.2078,1561.4,1561.1,2.94546043]
[1744294387874,6.14298,1561.3,1561.1,2.94548043]
[1744294388091,6.14294,1561.3,1561.1,1.66359043]
[1744294388390,4.8612,1561.3,1560.9,7.81772]
[1744294388583,4.8612,1561.3,1561.2,1.2818]
[1744294389184,4.8612,1561.3,1560.9,11.02552]
[1744294389381,4.8612,1561.3,1561.2,1.2818]
[1744294389584,1.28191,1561.1,1560.9,4.6126]
[1744294389785,3.2078,1561.2,1560.9,7.81765]
[1744294389990,4.4896,1561.2,1561.0,1.28189]
[1744294390187,7.788,1561.2,1560.9,4.6126]
[1744294390383,7.788,1561.2,1561.0,1.28191]
[1744294390577,9.06987,1561.2,1561.0,1.28191]
[1744294390782,7.788,1561.2,1561.1,1.28189]
[1744294391287,9.0698,1561.2,1561.1,1.28189]
[1744294391484,7.788,1561.2,1561.0,1.28194]
[1744294391688,7.788,1561.2,1560.9,4.6126]
[1744294391888,9.06985,1561.2,1561.1,1.28189]
[1744294392188,7.788,1561.2,1561.1,1.28189]
[1744294392387,3.2078,1561.4,1561.3,1.28172]
[1744294392589,7.788,1561.4,1561.3,1.28172]
[1744294393492,7.788,1561.4,1561.2,1.28173]
[1744294393493,9.06964,1561.4,1561.2,1.28173]
[1744294393684,1.28186,1561.2,1561.1,1.28187]
[1744294393890,1.28174,1561.3,1561.2,1.2818]
[1744294394090,1.28181,1561.2,1561.1,1.28183]
[1744294394590,5.97608,1561.3,1561.2,1.2818]
[1744294394789,3.2078,1561.4,1561.3,1.28172]
[1744294395287,0.00963175,1561.5,1561.4,1.28164]
[1744294395588,3.21743175,1561.5,1561.4,1.28164]
[1744294395792,0.00963175,1561.5,1561.4,1.28164]
[1744294396694,0.00963175,1561.5,1561.4,5.85894]
[1744294398289,0.00963175,1561.5,1561.4,10.73033043]
[1744294399093,0.00963175,1561.5,1561.4,7.52253043]
[1744294399386,0.00963175,1561.5,1561.4,2.94523043]
[1744294400294,0.00963175,1561.5,1561.4,1.28164]
[1744294400487,0.00963175,1561.5,1561.4,7.94523043]
[1744294400683,3.2078,1562.0,1561.9,1.28123]
[1744294400888,7.8027,1562.3,1562.2,1.28098]
[1744294401085,4.5949,1562.3,1562.2,1.28098]
[1744294401287,11.8566081,1562.5,1562.4,1.28082]
[1744294402194,1.28082,1562.4,1562.3,0.00960031]
[1744294402387,4.48855,1562.5,1562.3,0.00960031]
[1744294402684,8.98229,1562.5,1562.3,0.00960031]
[1744294402883,1.28082,1562.4,1562.3,0.00960031]
[1744294403088,3.2078,1562.5,1562.4,1.28075]
[1744294403494,4.50330031,1562.6,1562.4,6.02105]
[1744294403687,0.00960031,1562.6,1562.5,1.28074]
[1744294405298,0.00960031,1562.6,1562.5,6.28074]
[1744294405495,0.00960031,1562.6,1562.5,1.28074]
[1744294405995,0.00960031,1562.6,1562.4,4.7403]
[1744294406204,0.00960031,1562.6,1562.5,1.28074]
[1744294406398,1.29027031,1562.6,1562.4,4.7403]
[1744294406593,0.00960031,1562.6,1562.5,1.28074]
[1744294407202,0.00960031,1562.6,1562.5,12.45554]
[1744294408100,0.00960031,1562.6,1562.5,9.24774]
[1744294408298,0.00960031,1562.6,1562.5,12.45554]
[1744294408502,3.1e-07,1562.6,1562.5,27.50587797]
[1744294410099,3.1e-07,1562.6,1562.5,22.50587797]
[1744294410300,3.1e-07,1562.6,1562.5,6.15213043]
[1744294410602,3.1e-07,1562.6,1562.5,2.94433043]
[1744294411002,3.1e-07,1562.6,1562.5,7.47703043]
[1744294412204,3.1e-07,1562.6,1562.5,12.47703043]
[1744294412405,3.2078,1563.2,1563.1,1.28025]
[1744294413501,3.2078,1563.4,1563.0,4.5327]
[1744294413713,0.00960031,1563.3,1563.2,1.2801]
[1744294414810,0.00960031,1563.3,1563.2,5.8401]
[1744294415208,0.00960031,1563.3,1563.2,10.8401]
[1744294415810,0.00960031,1563.3,1563.2,5.8401]
[1744294416005,0.00960031,1563.3,1563.2,10.8401]
[1744294416418,3.1e-07,1563.3,1563.2,5.8401]
[1744294416813,3.1e-07,1563.3,1563.2,7.50369043]
[1744294417116,4.4784,1564.0,1563.9,1.27959]
[1744294417517,1.27944,1564.1,1563.9,1.27959]
[1744294417518,1.27943,1564.1,1563.9,1.27959]
[1744294417724,1.26640983,1564.1,1564.0,1.27951]
[1744294418019,4.8881,1564.3,1563.7,7.9501]
[1744294418224,1.27958,1564.0,1563.9,0.00960031]
[1744294418422,1.28302986,1563.9,1563.7,6.02199]
[1744294418722,0.00341986,1563.9,1563.8,1.27967]
[1744294418915,0.00341986,1563.8,1563.7,6.02203]
[1744294419516,3.2078,1564.0,1563.7,4.7423]
[1744294419711,6.16759,1564.1,1563.9,1.27959]
[1744294419924,1.27949,1564.1,1563.9,1.27957]
[1744294420219,6.41587031,1564.2,1563.7,4.7423]
[1744294420420,1.28898031,1564.2,1564.0,1.27951]
[1744294420615,1.27948,1564.1,1563.9,1.27957]
[1744294420811,1.27961,1563.9,1563.7,6.00896983]
[1744294421023,4.48738,1564.0,1563.8,1.27967]
[1744294421322,3.2078,1564.0,1563.7,4.71625966]
[1744294421622,4.6823,1563.9,1563.8,1.27966]
[1744294421820,5.96192,1563.9,1563.8,1.27967]
[1744294422016,0.00960031,1564.0,1563.9,1.27959]
[1744294424623,3.21740031,1564.0,1563.9,1.27959]
[1744294424827,8.21740031,1564.0,1563.7,4.71625966]
[1744294425018,3.2078,1563.8,1563.7,1.27971]
[1744294425218,4.4042,1563.9,1563.8,1.27967]
[1744294425424,0.00960031,1564.0,1563.9,1.27959]
[1744294426320,0.00960031,1564.0,1563.9,6.59959]
[1744294426526,0.00960031,1564.0,1563.9,5.95959]
[1744294428523,0.00960031,1564.0,1563.9,9.16739]
[1744294428833,4.7945,1564.6,1564.5,1.2791]
[1744294429024,9.44377983,1564.6,1564.2,11.15629]
[1744294429224,3.2078,1564.5,1564.4,1.27912]
[1744294429533,7.9829,1564.5,1564.4,1.27912]
[1744294429723,12.9829,1564.5,1564.1,7.93975]